bitfinex/quotes_ETHUSD_20250430
["timestamp","ask_amount","ask_price","bid_price","bid_amount"]
[1746006144269,0.9049186,1808.9,1808.7,5.52880945]
[1746006144559,0.9049186,1808.9,1808.8,0.18446094]
[1746006144858,6.43314017,1808.9,1808.8,0.18446094]
[1746006145016,2.88743729,1808.9,1808.8,4.84546094]
[1746006145222,2.88743729,1808.9,1808.8,4.661]
[1746006145444,2.88743729,1808.9,1808.8,4.84554052]
[1746006146548,0.9049186,1808.9,1808.8,11.68966772]
[1746006146748,0.9049186,1808.9,1808.8,19.86389092]
[1746006146945,0.5,1809.2,1809.1,5.52761041]
[1746006147269,0.5,1809.2,1809.1,11.60256335]
[1746006147417,0.5,1809.2,1809.1,10.44543648]
[1746006147623,0.5,1809.2,1809.1,10.50069229]
[1746006147827,0.5,1809.2,1809.1,8.7413447]
[1746006148024,0.5,1809.2,1809.1,10.44543648]
[1746006148224,0.5,1809.2,1809.1,8.1913447]
[1746006148458,0.5,1809.2,1809.1,10.44543648]
[1746006148747,0.5,1809.2,1809.1,10.50069422]
[1746006149176,0.05,1809.9,1809.5,0.7656]
[1746006149470,0.05,1809.9,1809.6,10.73697417]
[1746006149668,0.05,1809.9,1809.6,10.3649121]
[1746006150942,0.05,1809.9,1809.6,4.83893793]
[1746006151143,0.05,1809.9,1809.7,5.52566717]
[1746006151470,0.05,1809.9,1809.6,4.661]
[1746006151679,0.05,1809.9,1809.8,0.17793793]
[1746006151838,0.05,1809.9,1809.6,4.661]
[1746006152038,6.20771728,1809.9,1809.8,0.17793793]
[1746006152242,6.32432794,1809.8,1809.6,4.661]
[1746006152489,0.7987,1809.8,1809.6,4.661]
[1746006152793,6.32417242,1809.8,1809.7,0.1750276]
[1746006152944,5.52647704,1809.5,1809.3,4.66]
[1746006153140,0.7987,1809.4,1809.2,4.66]
[1746006153997,12.28863127,1809.7,1807.9,0.7999]
[1746006153998,0.7987,1809.2,1807.9,0.7999]
[1746006154142,5.5284383,1808.9,1808.0,10.24625389]
[1746006154340,6.32689621,1809.0,1808.4,5.52963337]
[1746006154537,3.0,1808.9,1808.4,10.18963337]
[1746006154756,3.0,1808.9,1808.5,5.52933228]
[1746006154961,3.0,1808.9,1808.6,0.17216262]
[1746006155244,6.32662587,1809.0,1808.6,6.27131921]
[1746006155245,0.7987,1809.0,1808.6,6.27131921]
[1746006155447,0.7987,1809.0,1808.7,5.52881233]
[1746006155654,0.7987,1809.0,1808.7,4.66]
[1746006156174,0.7987,1809.0,1808.8,0.17216262]
[1746006156558,1.73134144,1809.0,1808.8,0.17216262]
[1746006156764,7.25927255,1809.0,1808.8,0.17216262]
[1746006157144,0.7857,1809.4,1808.9,0.55]
[1746006157385,0.7857,1809.4,1809.0,0.55]
[1746006157864,0.7857,1809.4,1809.1,0.17216262]
[1746006158178,3.7857,1809.4,1809.1,0.17216262]
[1746006158557,0.7857,1809.4,1809.1,5.69955911]
[1746006158760,0.7857,1809.4,1809.1,11.03978295]
[1746006159645,0.7857,1809.4,1809.1,16.56715883]
[1746006159965,0.7761,1809.6,1809.2,6.07727549]
[1746006160711,6.30229998,1809.6,1809.3,0.17216262]
[1746006160883,12.43260286,1809.6,1809.3,0.17216262]
[1746006161180,14.29169889,1809.6,1809.4,0.17216262]
[1746006161369,5.5263885,1809.5,1809.1,4.66]
[1746006161552,14.29169889,1809.6,1809.1,4.66]
[1746006161751,5.52644473,1809.5,1809.2,0.17216262]
[1746006161950,14.29169889,1809.6,1809.1,10.18751483]
[1746006162202,14.29159443,1809.6,1809.2,0.17216262]
[1746006162345,9.75021569,1809.9,1809.5,5.5261999]
[1746006162346,0.05,1809.9,1809.5,5.5261999]
[1746006162552,0.05,1809.9,1809.6,10.35802553]
[1746006163576,0.05,1809.9,1809.7,5.52573406]
[1746006163950,0.05,1809.9,1809.8,0.17216262]
[1746006164151,0.05,1809.9,1809.6,4.66]
[1746006164573,0.7924,1809.8,1809.7,0.17216262]
[1746006164755,0.7924,1809.8,1809.6,4.66]
[1746006164956,0.7924,1809.8,1809.7,0.17216262]
[1746006165255,5.52577775,1809.7,1809.6,4.66]
[1746006165485,5.52617204,1809.6,1809.4,4.659]
[1746006165650,1.71822527,1809.6,1809.4,4.659]
[1746006166158,7.24432801,1809.6,1809.4,4.659]
[1746006167493,11.65608063,1809.7,1809.4,4.659]
[1746006168494,17.18209943,1809.7,1809.4,4.659]
[1746006168702,11.65608063,1809.7,1809.4,4.659]
[1746006169198,3.7924,1809.8,1809.4,4.659]
[1746006169398,9.31807738,1809.8,1809.4,4.659]
[1746006169692,5.5259197,1809.7,1809.4,4.659]
[1746006170291,5.5259197,1809.7,1809.5,0.17279896]
[1746006172212,11.05195588,1809.7,1809.5,0.17279896]
[1746006172508,11.65622258,1809.7,1809.5,0.17279896]
[1746006172713,17.18224001,1809.7,1809.5,0.17279896]
[1746006172912,19.42863757,1809.7,1809.5,0.17279896]
[1746006173077,13.90262014,1809.7,1809.5,0.17279896]
[1746006173975,5.52608311,1809.6,1809.5,0.17279896]
[1746006175215,6.3213885,1809.5,1809.4,4.659]
[1746006175511,0.795,1809.5,1809.4,4.83195803]
[1746006175686,6.3213885,1809.5,1809.4,4.83195803]
[1746006176208,0.795,1809.5,1809.4,4.83195803]
[1746006176409,6.3213885,1809.5,1809.4,4.83195803]
[1746006177114,0.795,1809.5,1809.4,4.83195803]
[1746006178105,6.3213885,1809.5,1809.4,4.83195803]
[1746006178279,7.50615636,1809.5,1809.4,4.83195803]
[1746006178475,10.50615636,1809.5,1809.4,0.17295803]
[1746006178690,10.57524968,1809.5,1809.4,0.17295803]
[1746006178983,5.52682389,1809.4,1809.1,4.766]
[1746006179180,5.52710267,1809.3,1809.1,4.766]
[1746006179589,11.05437851,1809.3,1809.1,4.766]
[1746006179833,5.52730488,1809.2,1809.1,4.766]
[1746006180037,0.8034,1809.2,1809.1,4.766]
[1746006180341,6.93370288,1809.2,1809.1,4.766]
[1746006181121,13.70709581,1809.2,1809.1,4.766]
[1746006181292,5.52779745,1809.1,1808.8,4.766]
[1746006181620,11.65810033,1809.1,1808.8,4.766]
[1746006182010,6.13030288,1809.1,1808.8,4.766]
[1746006182598,5.52822157,1808.9,1808.8,4.766]
[1746006182906,7.39915196,1808.9,1808.8,4.766]
[1746006184426,5.52935767,1808.6,1808.5,4.766]
[1746006184626,11.65966055,1808.6,1808.3,4.766]
[1746006184796,11.65966055,1808.6,1808.4,0.12603434]
[1746006185133,11.65966055,1808.6,1808.1,7.35540802]
[1746006185134,0.7608,1808.5,1808.1,1.02462539]
[1746006185436,0.7608,1808.5,1808.1,11.32113117]
[1746006185738,0.7608,1808.5,1808.1,12.07303117]
[1746006185887,0.7608,1808.5,1808.1,12.07300832]
[1746006186321,6.29030681,1808.5,1808.1,6.54252539]
[1746006187296,6.29030681,1808.5,1808.1,4.766]
[1746006187297,6.35943281,1808.5,1808.1,4.766]
[1746006187501,6.29030681,1808.5,1808.1,4.766]
[1746006187697,0.7608,1808.5,1808.1,10.29661824]
[1746006188312,5.52933413,1808.6,1808.1,4.82130109]
[1746006188522,5.52933413,1808.6,1808.1,10.35184018]
[1746006188728,5.52933413,1808.6,1808.1,13.2121242]
[1746006189032,5.52933413,1808.6,1808.1,13.15682311]
[1746006189433,11.05874572,1808.6,1808.1,13.15682311]
[1746006189798,5.52933413,1808.6,1808.1,13.15682311]
[1746006190105,5.52944527,1808.5,1808.1,13.15682311]
[1746006190836,5.52944527,1808.5,1808.1,4.766]
[1746006190837,5.52975557,1808.4,1808.1,4.766]
[1746006191044,5.529586,1808.5,1808.1,4.766]
[1746006191204,5.52978956,1808.4,1808.1,4.766]
[1746006191712,0.7763,1808.4,1808.1,4.766]
[1746006192336,5.529586,1808.5,1808.1,4.766]
[1746006192535,5.529586,1808.5,1808.1,10.29663954]
[1746006192723,6.29090488,1808.6,1808.1,11.0170288]
[1746006193114,6.29090488,1808.6,1808.1,10.96172482]
[1746006194729,6.29090488,1808.6,1808.2,0.8074]
[1746006194923,5.52901522,1808.7,1808.2,0.8074]
[1746006195117,5.52901522,1808.7,1808.2,7.01677066]
[1746006195434,5.52927969,1808.6,1808.2,6.96147004]
[1746006195634,11.05866754,1808.6,1808.2,1.43124853]
[1746006195834,5.52958344,1808.5,1808.2,1.43124853]
[1746006196051,5.52958344,1808.5,1808.2,0.8074]
[1746006196237,11.65962877,1808.6,1808.2,0.8074]
[1746006196421,5.52957063,1808.5,1808.2,0.8074]
[1746006197327,8.52866088,1808.8,1808.4,5.52967411]
[1746006197557,3.0,1808.8,1808.5,4.768]
[1746006197866,8.52870543,1808.8,1808.5,4.768]
[1746006198963,5.52883793,1808.7,1808.5,4.768]
[1746006199658,8.52870543,1808.8,1808.5,4.768]
[1746006199965,9.99460626,1808.8,1808.6,0.13848615]
[1746006200322,15.52338279,1808.8,1808.6,0.13848615]
[1746006200526,5.52883286,1808.7,1808.6,0.13848615]
[1746006200964,9.99460626,1808.8,1808.6,0.13848615]
[1746006201129,5.52883286,1808.7,1808.6,0.13848615]
[1746006202774,6.31043286,1808.7,1808.6,0.13848615]
[1746006203475,9.29400543,1808.8,1808.6,0.13848615]
[1746006203669,14.82278827,1808.8,1808.6,0.13848615]
[1746006203978,5.52883286,1808.7,1808.6,0.13848615]
[1746006204480,1.65691797,1809.2,1808.6,0.13848615]
[1746006204642,5.52639192,1809.5,1809.0,0.8015]
[1746006204843,6.30519192,1809.5,1809.1,4.88177213]
[1746006205042,6.37428421,1809.5,1809.1,4.88177213]
[1746006205279,6.16418077,1809.4,1809.1,4.88177213]
[1746006205638,0.63742842,1809.4,1809.1,4.88177213]
[1746006206049,0.84789229,1809.5,1809.1,4.88177213]
[1746006206275,5.52730488,1809.2,1809.1,4.88177213]
[1746006206581,6.27790488,1809.2,1809.1,4.88177213]
[1746006206785,9.27790488,1809.2,1809.1,0.13777213]
[1746006207073,9.3470091,1809.2,1808.8,5.5337]
[1746006207270,5.30712363,1809.2,1808.9,0.12698576]
[1746006207573,5.5277849,1809.1,1808.7,4.743]
[1746006207752,8.59689579,1809.1,1809.0,0.12698576]
[1746006207944,5.52827396,1808.9,1808.7,4.743]
[1746006208143,5.52792551,1809.0,1808.7,4.743]
[1746006209379,5.52827,1808.9,1808.7,4.743]
[1746006209583,5.52904399,1808.7,1808.2,5.53006444]
[1746006209794,6.13030288,1808.7,1808.5,4.743]
[1746006210282,6.13030288,1808.7,1808.3,10.27283694]
[1746006210469,11.65918879,1808.7,1808.3,10.27283694]
[1746006212085,6.13030288,1808.7,1808.3,10.27283694]
[1746006212384,6.13030288,1808.7,1808.4,6.29450634]
[1746006212573,6.13030288,1808.7,1808.5,5.52932776]
[1746006213402,6.13030288,1808.7,1808.6,5.52913856]
[1746006213558,6.13030288,1808.7,1808.6,6.29413856]
[1746006214783,6.13030288,1808.7,1808.6,6.42501015]
[1746006214968,6.13030288,1808.7,1808.6,7.62044394]
[1746006215953,5.52709383,1809.3,1808.8,5.52824494]
[1746006216149,5.52709383,1809.3,1808.9,4.744]
[1746006216384,5.52709383,1809.3,1808.9,4.87391976]
[1746006216596,6.07980321,1809.3,1808.9,4.87391976]
[1746006217123,0.55270938,1809.3,1808.9,10.40204532]
[1746006217307,3.0,1809.4,1809.0,0.8306]
[1746006217508,0.7551,1809.5,1809.1,5.52750418]
[1746006217713,0.7551,1809.5,1809.1,5.65726532]
[1746006217910,6.27930891,1809.7,1809.2,5.52710628]
[1746006218236,7.45980383,1809.7,1809.3,5.62337152]
[1746006218955,5.52626613,1809.6,1809.3,5.62337152]
[1746006219231,5.52626613,1809.6,1809.3,4.86967152]
[1746006219792,7.52895523,1809.7,1809.3,4.86967152]
[1746006220140,13.05499958,1809.7,1809.3,4.86967152]
[1746006220343,12.98594995,1809.7,1809.3,4.86967152]
[1746006220630,7.45986891,1809.7,1809.3,4.86967152]
[1746006220814,7.5289552,1809.7,1809.3,4.86967152]
[1746006220991,5.52609969,1809.6,1809.3,4.86967152]
[1746006222190,11.65640257,1809.6,1809.3,4.86967152]
[1746006222391,19.09439061,1809.6,1809.3,4.86967152]
[1746006222687,5.52648487,1809.5,1809.3,4.86967152]
[1746006223188,5.52669393,1809.4,1809.3,4.86967152]
[1746006223391,11.05317462,1809.5,1809.3,4.744]
[1746006223717,5.52648487,1809.5,1809.4,0.12567152]
[1746006224118,5.52648487,1809.5,1809.3,4.744]
[1746006224426,5.52648487,1809.5,1809.4,0.12567152]
[1746006224630,5.52669393,1809.4,1809.3,4.744]
[1746006224850,5.52669393,1809.4,1809.3,4.86967152]
[1746006226221,7.43604583,1809.5,1809.3,4.86967152]
[1746006226622,3.87808882,1809.4,1809.3,0.12567152]
[1746006226821,5.52744353,1809.2,1809.0,4.742]
[1746006227027,6.13030288,1809.2,1809.1,0.11630814]
[1746006228372,11.65760776,1809.2,1809.1,0.11630814]
[1746006228745,16.37608478,1809.2,1809.1,0.11630814]
[1746006229131,17.20328478,1809.2,1809.1,0.11630814]
[1746006229331,17.20328478,1809.2,1808.8,4.743]
[1746006229332,5.52782841,1809.1,1808.8,4.743]
[1746006229922,5.52791597,1809.0,1808.9,0.11813047]
[1746006230442,22.73099631,1809.2,1808.9,0.11813047]
[1746006230655,22.73099631,1809.2,1808.8,4.743]
[1746006230656,8.52771524,1809.1,1808.8,4.743]
[1746006230861,8.52771524,1809.1,1808.9,0.11813047]
[1746006231139,8.52771524,1809.1,1808.8,4.743]
[1746006231441,6.13030288,1809.2,1808.9,1.2332]
[1746006231633,6.13030288,1809.2,1809.0,0.1193192]
[1746006231836,11.65772144,1809.2,1809.0,0.1193192]
[1746006233248,11.65764695,1809.2,1809.0,0.1193192]
[1746006233758,6.13030288,1809.2,1809.0,0.1193192]
[1746006235974,11.65769818,1809.2,1809.0,0.1193192]
[1746006236586,6.13030288,1809.2,1809.0,0.1193192]
[1746006236961,5.52761041,1809.1,1809.0,0.1193192]
[1746006237261,3.0,1809.1,1808.8,4.743]
[1746006237456,3.0,1809.1,1808.9,0.12030327]
[1746006237661,3.0,1809.1,1808.8,4.743]
[1746006237883,8.52765986,1809.1,1808.9,0.12030327]
[1746006238087,8.52765986,1809.1,1808.8,4.743]
[1746006238401,3.0,1809.3,1809.0,5.5279132]
[1746006238551,3.0,1809.3,1808.9,6.91868618]
[1746006238751,3.0,1809.3,1808.9,6.79814518]
[1746006239080,3.0,1809.3,1809.0,0.120541]
[1746006239456,8.52703915,1809.3,1809.0,0.120541]
[1746006239990,5.52734547,1809.2,1809.0,0.120541]
[1746006240186,8.52703915,1809.3,1809.0,0.120541]
[1746006240363,3.0,1809.3,1809.0,0.120541]
[1746006242660,3.0,1809.3,1809.0,0.76377977]
[1746006243393,8.52704034,1809.3,1809.0,0.120541]
[1746006244504,5.52735043,1809.2,1809.0,0.120541]
[1746006244913,11.05491779,1809.2,1809.0,0.120541]
[1746006245094,5.52735043,1809.2,1809.0,0.120541]
[1746006246147,8.52718439,1809.3,1809.0,0.120541]
[1746006246418,5.52732839,1809.2,1809.0,0.120541]
[1746006247425,7.00819967,1809.2,1809.0,0.120541]
[1746006247724,5.52732839,1809.2,1809.0,0.120541]
[1746006248743,11.65763127,1809.2,1809.0,0.120541]
[1746006250244,5.52761041,1809.1,1808.8,4.743]
[1746006250404,5.52761041,1809.1,1808.9,0.11879767]
[1746006250605,5.52761041,1809.1,1808.8,4.743]
[1746006250907,15.4126166,1809.0,1808.9,0.11879767]
[1746006251114,8.52849849,1808.9,1808.6,4.745]
[1746006251308,14.65880137,1808.9,1808.6,4.745]
[1746006251513,5.52864439,1808.8,1808.6,4.745]
[1746006252214,5.52883286,1808.7,1808.6,4.745]
[1746006252412,16.54208347,1808.7,1808.6,4.745]
[1746006252812,3.0,1808.9,1808.6,0.8063]
[1746006253057,3.7772,1808.9,1808.6,0.8063]
[1746006253268,0.31034814,1808.8,1808.6,0.8063]
[1746006254139,5.83890518,1808.8,1808.4,23.8063]
[1746006254454,0.31034814,1808.7,1808.4,23.8063]
[1746006255131,0.31034814,1808.7,1808.4,26.73991898]
[1746006255325,0.31034814,1808.6,1808.4,26.73991898]
[1746006256051,0.31034814,1808.5,1808.4,26.73991898]
[1746006257452,0.31034814,1808.5,1808.4,23.8063]
[1746006257767,0.31034814,1808.5,1808.4,5.5523]
[1746006258049,0.31034814,1808.5,1808.4,4.746]
[1746006259875,0.31034814,1808.5,1808.4,4.85316315]
[1746006260690,0.31034814,1808.5,1808.4,10.3829132]
[1746006260845,0.31034814,1808.5,1808.4,12.05063843]
[1746006261667,0.31034814,1808.5,1808.4,6.52088838]
[1746006261868,0.31034814,1808.5,1808.4,12.05063843]
[1746006262165,0.31034814,1808.5,1808.4,6.52088838]
[1746006262379,0.31034814,1808.5,1808.4,4.85316315]
[1746006262551,0.31034814,1808.5,1808.4,10.3829132]
[1746006262756,0.31034814,1808.5,1808.4,4.85316315]
[1746006264204,0.31034814,1808.5,1808.4,10.3829132]
[1746006265504,0.31034814,1808.5,1808.4,4.85316315]
[1746006275999,0.31034814,1808.5,1808.4,10.3829132]
[1746006276181,0.31034814,1808.5,1808.4,12.76510966]
[1746006276380,0.31034814,1808.5,1808.4,7.23535961]
[1746006277719,0.31034814,1808.5,1808.4,12.76510966]
[1746006278310,0.31034814,1808.5,1808.4,7.23535961]
[1746006278611,0.31034814,1808.5,1808.4,6.44445961]
[1746006278912,0.31034814,1808.5,1808.4,4.85316315]
[1746006279308,0.31034814,1808.5,1808.4,5.64406315]
[1746006281711,0.31034814,1808.5,1808.4,4.85316315]
[1746006284819,0.31034814,1808.5,1808.4,11.79270117]
[1746006285006,0.31034814,1808.5,1808.4,11.7374132]
[1746006285205,0.31034814,1808.5,1808.4,13.63373215]
[1746006285679,12.4382287,1809.2,1808.7,5.52876162]
[1746006285876,12.4382287,1809.2,1808.8,4.85500494]
[1746006286507,5.52774187,1809.1,1808.8,4.85500494]
[1746006286915,0.31060145,1809.0,1808.8,4.85500494]
[1746006287720,0.31060145,1808.9,1808.8,4.85500494]
[1746006287883,0.31060145,1808.9,1808.8,5.62210494]
[1746006289187,0.31060145,1808.9,1808.8,6.73719025]
[1746006289596,0.31060145,1808.9,1808.8,4.85500494]
[1746006292137,1.14340145,1808.9,1808.8,0.10900494]
[1746006292349,6.67162302,1808.9,1808.7,4.746]
[1746006292571,6.67162302,1808.9,1808.8,0.10900494]
[1746006293716,7.18879064,1808.9,1808.8,0.10900494]
[1746006293916,9.07349469,1808.9,1808.8,0.10900494]
[1746006295120,6.33391763,1808.6,1808.5,4.701]
[1746006295348,6.93490288,1808.6,1808.5,4.701]
[1746006295719,7.4520705,1808.6,1808.5,4.701]
[1746006296047,7.76267195,1808.6,1808.5,4.701]
[1746006298213,13.29190265,1808.6,1808.3,18.258]
[1746006298447,15.17409007,1808.6,1808.4,4.701]
[1746006298620,0.31060145,1808.5,1808.4,4.701]
[1746006299138,0.82776907,1808.5,1808.4,4.701]
[1746006300640,0.82776907,1808.5,1808.0,5.53085497]
[1746006300841,0.51716762,1808.4,1808.1,4.702]
[1746006301148,0.51716762,1808.4,1808.2,5.53026782]
[1746006301359,0.51716762,1808.4,1808.3,6.28405585]
[1746006301535,6.13030288,1808.5,1808.3,6.28405585]
[1746006301727,6.13030288,1808.5,1808.4,5.52975005]
[1746006301955,6.13030288,1808.8,1808.5,5.52935478]
[1746006302125,6.13030288,1808.8,1808.6,5.4858]
[1746006302524,0.31018567,1808.7,1808.6,5.4858]
[1746006302752,0.31018567,1808.7,1808.6,11.01493856]
[1746006302944,0.82715644,1808.7,1808.6,5.4858]
[1746006303226,0.82715644,1808.7,1808.6,11.01493856]
[1746006303581,0.82715644,1808.7,1808.6,12.6693566]
[1746006303743,0.82715644,1808.7,1808.6,13.2193566]
[1746006304258,6.13030288,1809.2,1809.1,0.8286]
[1746006304558,6.13030288,1809.2,1809.1,5.5306]
[1746006304726,6.95689741,1809.2,1809.1,5.5306]
[1746006305125,0.82659453,1809.2,1809.1,11.05821041]
[1746006305357,0.82659453,1809.2,1809.1,12.71680049]
[1746006305950,0.82659453,1809.2,1809.1,7.18919008]
[1746006306332,0.82659453,1809.2,1809.1,12.71680049]
[1746006306962,0.82659453,1809.2,1809.1,14.41282305]
[1746006307563,6.13030288,1809.6,1809.2,5.52711879]
[1746006307860,6.13030288,1809.6,1809.3,5.52697468]
[1746006308029,0.51595324,1809.5,1809.2,5.52711879]
[1746006308236,0.51595324,1809.5,1809.3,0.55271188]
[1746006308568,0.51595324,1809.4,1809.3,0.55271188]
[1746006308928,0.82540059,1809.4,1809.3,0.55271188]
[1746006311130,0.82540059,1809.4,1809.1,12.71663706]
[1746006311363,0.82540059,1809.4,1809.1,18.24407061]
[1746006311662,0.51595324,1809.3,1809.2,5.52730193]
[1746006312062,0.51595324,1809.3,1809.2,5.52730488]
[1746006312656,6.13030288,1809.6,1809.2,5.52730488]
[1746006312957,6.13030288,1809.6,1809.2,7.52114575]
[1746006313160,0.51529526,1809.5,1809.2,7.52114575]
[1746006313470,0.30917315,1809.4,1809.2,7.52111205]
[1746006313634,0.30917315,1809.4,1809.2,13.04822887]
[1746006314173,0.30917315,1809.4,1809.3,5.52699939]
[1746006314469,6.13030288,1809.6,1809.4,0.7588]
[1746006314680,6.13030288,1809.6,1809.5,4.7]
[1746006315281,6.95475084,1809.6,1809.3,6.83157428]
[1746006315449,6.95475084,1809.6,1809.5,4.7]
[1746006316183,6.95475084,1809.6,1809.5,10.9851885]
[1746006316380,6.95475084,1809.6,1809.5,12.6418816]
[1746006316776,6.64558831,1809.6,1809.5,12.6418816]
[1746006316974,6.64558831,1809.6,1809.5,7.1154931]
[1746006317156,6.64558831,1809.6,1809.5,6.3566931]
[1746006317486,6.64558831,1809.6,1809.5,11.8830816]
[1746006318482,6.64558831,1809.6,1809.5,6.3566931]
[1746006319253,6.64558831,1809.6,1809.5,11.8830816]
[1746006319448,6.18030288,1809.9,1809.6,5.52605476]
[1746006319787,0.51457666,1809.8,1809.6,7.2669684]
[1746006320187,0.51457666,1809.8,1809.6,7.26679603]
[1746006320385,0.51457666,1809.8,1809.6,7.26677943]
[1746006320685,6.18030288,1809.9,1809.7,6.32044903]
[1746006321262,6.18030288,1809.9,1809.8,5.52547242]
[1746006321582,6.18030288,1809.9,1809.6,7.26686384]
[1746006321792,6.18030288,1809.9,1809.7,0.72668638]
[1746006322902,6.18030288,1809.9,1809.7,6.25237773]
[1746006323768,6.18030288,1809.9,1809.7,6.25229975]
[1746006324394,6.18030288,1809.9,1809.6,5.52595984]
[1746006324395,6.32718081,1809.8,1809.5,4.699]
[1746006324708,0.51417225,1809.7,1809.5,4.699]
[1746006324864,6.13030288,1809.6,1809.5,4.699]
[1746006325064,6.64447513,1809.6,1809.5,4.699]
[1746006325568,6.9531074,1809.6,1809.5,4.699]
[1746006331019,8.79465353,1809.6,1809.5,4.699]
[1746006333124,14.32073664,1809.6,1809.5,4.699]
[1746006333325,5.52662925,1809.5,1809.1,0.8226]
[1746006333525,6.32720488,1809.2,1809.1,4.685]
[1746006333687,9.32720488,1809.2,1809.1,4.685]
[1746006334223,9.84137713,1809.2,1809.1,4.685]
[1746006334428,10.1500094,1809.2,1809.1,4.685]
[1746006336789,16.28031228,1809.2,1809.1,4.685]
[1746006336987,18.46105713,1809.2,1809.1,4.685]
[1746006338927,8.52791597,1809.0,1808.8,4.686]
[1746006339097,5.83685384,1808.9,1808.8,4.686]
[1746006339501,6.35102609,1808.9,1808.8,4.686]
[1746006339821,7.10462609,1808.9,1808.8,4.686]
[1746006340026,1.57640452,1808.9,1808.8,4.686]
[1746006340225,7.10462609,1808.9,1808.8,4.686]
[1746006340422,14.85326828,1808.9,1808.3,6.30389701]
[1746006340622,9.04293481,1808.8,1808.6,4.686]
[1746006340925,8.83746513,1808.7,1808.6,4.686]
[1746006341151,9.35163738,1808.7,1808.6,4.686]
[1746006342832,3.82280452,1808.7,1808.6,4.686]
[1746006343226,9.35163738,1808.7,1808.6,4.686]
[1746006343940,5.52982273,1808.4,1808.2,18.251]
[1746006344145,6.29888504,1808.6,1808.5,4.686]
[1746006344303,6.60751731,1808.6,1808.5,4.686]
[1746006347100,0.51417225,1808.4,1808.2,23.7106]
[1746006347303,6.04361747,1808.5,1808.2,23.7106]
[1746006347838,0.51417225,1808.4,1808.2,23.7106]
[1746006348338,16.77549732,1808.6,1808.2,23.7106]
[1746006348537,7.20717268,1808.5,1808.2,22.938]
[1746006348739,9.28285585,1808.3,1808.2,4.687]
[1746006348938,5.53041711,1808.2,1808.0,4.687]
[1746006349307,5.53066755,1808.1,1808.0,4.687]
[1746006349643,6.63677602,1808.1,1808.0,4.687]
[1746006350135,13.30068171,1808.1,1808.0,4.687]
[1746006350504,13.60891408,1808.1,1808.0,4.687]
[1746006351644,14.01621511,1808.1,1808.0,4.687]
[1746006352247,13.70798274,1808.1,1808.0,4.687]
[1746006354353,14.01625207,1808.1,1808.0,4.687]
[1746006358749,17.01625207,1808.1,1808.0,4.687]
[1746006358948,17.01625207,1808.1,1807.6,0.7726]
[1746006358949,5.53175475,1807.8,1807.6,0.7726]
[1746006359170,11.68145642,1807.9,1807.7,4.658]
[1746006359465,5.53158535,1807.8,1807.7,4.658]
[1746006359964,6.04566762,1807.8,1807.7,4.658]
[1746006360258,0.7942,1807.7,1807.1,0.05]
[1746006360463,8.0231947,1807.4,1807.1,0.05]
[1746006360618,0.80231947,1807.3,1807.2,0.7621]
[1746006360822,6.15,1807.4,1807.2,0.7621]
[1746006361023,6.15,1807.4,1807.2,5.4211]
[1746006361415,6.15,1807.4,1807.2,10.9544922]
[1746006361621,5.53311569,1807.3,1807.2,0.7621]
[1746006361830,0.51469681,1807.3,1807.1,0.05]
[1746006362030,6.0478576,1807.3,1807.1,0.05]
[1746006362237,1.11948257,1807.2,1807.1,0.05]
[1746006362452,1.42830043,1807.2,1807.1,0.05]
[1746006362968,0.82351467,1807.2,1807.1,0.05]
[1746006363138,0.30881786,1807.2,1807.1,0.05]
[1746006363944,0.82392553,1807.2,1807.1,0.05]
[1746006364331,6.35734739,1807.2,1807.1,0.05]
[1746006364639,0.82392553,1807.2,1807.1,0.05]
[1746006364951,14.25767012,1807.2,1807.1,0.05]
[1746006365976,17.25767012,1807.2,1807.1,0.05]
[1746006369995,11.72424826,1807.2,1807.1,0.05]
[1746006370196,10.90964826,1807.2,1807.1,0.05]
[1746006370698,16.44307012,1807.2,1807.1,0.05]
[1746006376206,6.97392553,1807.2,1807.1,0.8513]
[1746006376369,6.97392553,1807.2,1807.1,6.38502807]
[1746006377303,6.66510767,1807.2,1807.1,6.38502807]
[1746006379373,0.51510767,1807.2,1807.1,6.38502807]
[1746006379578,6.15,1807.6,1807.2,5.53311651]
[1746006379815,6.15,1807.6,1807.3,4.661]
[1746006380031,0.30923004,1807.5,1807.3,4.661]
[1746006380181,0.82461305,1807.5,1807.3,4.661]
[1746006380387,0.51538301,1807.4,1807.3,4.661]
[1746006381194,0.82461305,1807.4,1807.3,4.661]
[1746006384323,7.06979389,1807.4,1807.3,4.661]
[1746006385104,1.53698433,1807.4,1807.3,4.661]
[1746006385929,5.53342186,1807.2,1807.1,1e-08]
[1746006386278,5.53517074,1806.7,1806.4,0.7769]
[1746006386391,6.15,1806.7,1806.4,6.31252799]
[1746006386592,6.15,1806.7,1806.5,10.19655718]
[1746006386797,6.15,1806.9,1806.6,0.7632]
[1746006387008,0.30923004,1806.8,1806.6,0.7632]
[1746006387332,0.51693021,1806.7,1806.5,4.661]
[1746006387890,0.51693021,1806.6,1806.4,0.7632]
[1746006388128,0.51693021,1806.6,1806.5,4.705]
[1746006389907,6.36269224,1806.6,1806.5,4.705]
[1746006391310,6.36269224,1806.6,1806.5,11.02466601]
[1746006391311,0.82743264,1806.6,1806.5,11.02466601]
[1746006391509,0.82743264,1806.6,1806.5,7.14514081]
[1746006391734,0.82743264,1806.6,1806.5,5.4891]
[1746006396915,0.82743264,1806.6,1806.5,11.02466601]
[1746006397115,0.82743264,1806.6,1806.5,5.4891]
[1746006400418,0.82743264,1806.6,1806.5,11.57466601]
[1746006400618,0.51693021,1806.6,1806.5,11.57466601]
[1746006400816,0.51693021,1806.6,1806.5,5.4891]
[1746006401035,0.51693021,1806.7,1806.5,5.4891]
[1746006401660,0.51693021,1806.6,1806.5,5.4891]
[1746006402292,0.51693021,1806.6,1806.5,11.57466601]
[1746006402717,0.51693021,1806.6,1806.5,11.02466601]
[1746006403528,0.82687677,1806.6,1806.5,11.02466601]
[1746006404152,0.82687677,1806.6,1806.4,5.53567265]
[1746006404341,0.82687677,1806.6,1806.5,10.24056601]
[1746006404545,0.82687677,1806.6,1806.5,4.705]
[1746006405124,0.82687677,1806.6,1806.5,10.24056601]
[1746006406252,0.82687677,1806.6,1806.5,13.26289753]
[1746006406253,0.51693021,1806.6,1806.5,13.26289753]